bitfinex/quotes_BTCUSD_20251114
["timestamp","ask_amount","ask_price","bid_price","bid_amount"]
[1763085979868,0.01231,99574.0,99571.0,0.20086169]
[1763085980076,0.00013738,99577.0,99574.0,0.20085521]
[1763085980277,0.06544,99576.0,99573.0,0.20385701]
[1763085980484,0.00013738,99577.0,99576.0,0.20085161]
[1763085981345,0.00013738,99577.0,99576.0,0.24427035]
[1763085981717,0.00013738,99577.0,99576.0,0.27117316]
[1763085981917,0.06544,99589.0,99588.0,0.2008274]
[1763085982162,0.20083645,99584.0,99577.0,0.04341874]
[1763085982509,0.20083868,99583.0,99577.0,0.04341874]
[1763085982756,0.06544,99589.0,99577.0,0.04341874]
[1763085982961,0.06544,99589.0,99576.0,0.003]
[1763085983180,0.06544,99589.0,99566.0,0.04341874]
[1763085983181,0.01554,99577.0,99571.0,0.02686002]
[1763085983380,0.02489,99588.0,99574.0,0.20085497]
[1763085983601,0.06544,99589.0,99577.0,0.20384933]
[1763085983777,0.06544,99589.0,99577.0,0.003]
[1763085983998,0.20083262,99586.0,99571.0,0.0269974]
[1763085984206,0.06544,99589.0,99584.0,0.20083477]
[1763085984414,0.06544,99589.0,99582.0,0.20083879]
[1763085984609,0.06544,99589.0,99584.0,0.20083485]
[1763085984795,0.06544,99589.0,99585.0,0.20083205]
[1763085985117,0.06544,99589.0,99584.0,0.20083485]
[1763085985342,0.06544,99589.0,99583.0,0.20083624]
[1763085985508,0.26626689,99589.0,99584.0,0.004]
[1763085985708,0.2008403,99582.0,99575.0,0.20085312]
[1763085986054,0.20084415,99580.0,99571.0,0.07341614]
[1763085986197,0.2163803,99582.0,99571.0,0.07041614]
[1763085986542,0.20084772,99578.0,99573.0,0.20085671]
[1763085986763,0.20084621,99579.0,99573.0,0.20085671]
[1763085987049,0.20084614,99579.0,99574.0,0.20085511]
[1763085987217,0.20084868,99578.0,99572.0,0.20085921]
[1763085987415,0.06544,99589.0,99571.0,0.07341614]
[1763085987616,0.06544,99589.0,99586.0,0.20083056]
[1763085987880,0.06544,99589.0,99587.0,0.20082858]
[1763085988676,0.27603818,99602.0,99595.0,0.20081312]
[1763085988840,0.06544,99593.0,99591.0,0.2008207]
[1763085989773,0.01231,99603.0,99600.0,0.20080197]
[1763085989969,0.0903687,99622.0,99607.0,0.20078765]
[1763085990173,0.0903687,99622.0,99587.0,0.30424282]
[1763085990174,0.06544,99607.0,99605.0,0.20079115]
[1763085990440,0.20079111,99606.0,99600.0,0.04686002]
[1763085990602,0.06544,99607.0,99600.0,0.02686002]
[1763085990974,0.01231,99615.0,99605.0,0.20079256]
[1763085991089,0.01192,99623.0,99610.0,0.02684936]
[1763085991295,0.20075922,99622.0,99613.0,0.02684936]
[1763085991497,0.07749746,99623.0,99614.0,0.02684936]
[1763085991700,0.07749746,99623.0,99621.0,0.20075936]
[1763085991925,0.06557746,99623.0,99621.0,0.20075936]
[1763085992311,0.00013746,99623.0,99621.0,0.20075936]
[1763085992514,0.00013746,99623.0,99622.0,0.04341874]
[1763085992781,0.00013746,99623.0,99622.0,0.07929032]
[1763085992955,0.00013746,99623.0,99622.0,0.04341874]
[1763085993506,0.00013746,99623.0,99622.0,0.04641874]
[1763085994128,0.00013746,99623.0,99622.0,0.07322384]
[1763085994575,0.00013746,99623.0,99622.0,0.04641874]
[1763085995134,0.01554746,99623.0,99622.0,0.008]
[1763085995390,0.07385081,99623.0,99622.0,0.008]
[1763085995535,0.01554746,99623.0,99622.0,0.008]
[1763085997184,0.01554746,99623.0,99622.0,0.003]
[1763085997578,0.01554746,99623.0,99622.0,0.007]
[1763085997839,0.01554746,99623.0,99622.0,0.004]
[1763085997997,0.01554746,99623.0,99622.0,0.007]
[1763085998219,0.03516114,99623.0,99622.0,0.007]
[1763086000016,0.35816114,99623.0,99622.0,0.007]
[1763086000220,0.35816114,99623.0,99594.0,0.03587158]
[1763086000221,0.20080321,99600.0,99599.0,0.0268051]
[1763086000424,0.20080724,99598.0,99597.0,0.0268051]
[1763086000628,0.20080724,99598.0,99596.0,0.0268051]
[1763086000875,0.20082337,99590.0,99589.0,0.0268051]
[1763086001073,0.20082337,99590.0,99588.0,0.0268051]
[1763086001074,0.21623337,99590.0,99588.0,0.0268051]
[1763086001274,0.02459,99589.0,99588.0,0.0268051]
[1763086001485,0.02459,99589.0,99582.0,0.03587158]
[1763086001486,0.2008274,99588.0,99587.0,0.0268051]
[1763086001856,0.2162374,99588.0,99586.0,0.0268051]
[1763086002060,0.02459,99587.0,99586.0,0.0268051]
[1763086002341,0.20083899,99583.0,99581.0,0.03587158]
[1763086002456,0.2008395,99582.0,99581.0,0.03587158]
[1763086002665,0.21625066,99582.0,99580.0,0.03587158]
[1763086002911,0.20083899,99583.0,99580.0,0.03587158]
[1763086003117,0.20084152,99581.0,99580.0,0.03587158]
[1763086003325,0.26154911,99581.0,99580.0,0.03587158]
[1763086003537,0.20084757,99578.0,99577.0,0.03587158]
[1763086003773,0.20084757,99578.0,99577.0,0.03600896]
[1763086003979,0.21625757,99578.0,99577.0,0.03600896]
[1763086004660,0.21625757,99578.0,99577.0,0.00013738]
[1763086004867,0.21625757,99578.0,99577.0,0.00313738]
[1763086005407,0.06544,99589.0,99577.0,0.00713738]
[1763086005618,0.06544,99589.0,99584.0,0.02681414]
[1763086005824,0.06544,99589.0,99580.0,0.02]
[1763086005825,0.06544,99589.0,99587.0,0.22764252]
[1763086006121,0.06544,99589.0,99588.0,0.02681414]
[1763086006321,0.01192,99599.0,99591.0,0.20082052]
[1763086006512,0.01192,99599.0,99590.0,0.02681265]
[1763086006795,0.01192,99599.0,99591.0,0.02681265]
[1763086007154,0.01192,99599.0,99592.0,0.2008187]
[1763086007749,0.212727,99599.0,99592.0,0.20081934]
[1763086007953,0.01192,99599.0,99595.0,0.20081225]
[1763086008354,0.01192,99599.0,99596.0,0.20081012]
[1763086008586,0.01192,99599.0,99595.0,0.20081225]
[1763086009078,0.200777,99613.0,99606.0,0.20078972]
[1763086009288,0.20078212,99611.0,99606.0,0.2007891]
[1763086009511,0.20077718,99613.0,99600.0,0.02]
[1763086009744,0.20077718,99613.0,99607.0,0.2007871]
[1763086009961,0.01192,99614.0,99593.0,0.04341874]
[1763086010181,0.0903687,99612.0,99585.0,0.05367419]
[1763086010390,0.20083749,99583.0,99582.0,0.04341874]
[1763086010793,0.20084959,99577.0,99576.0,0.05367419]
[1763086010999,0.20084959,99577.0,99575.0,0.05367419]
[1763086011269,0.20085038,99577.0,99576.0,0.04341874]
[1763086011849,0.2008604,99572.0,99571.0,0.04341874]
[1763086012254,0.20085766,99573.0,99565.0,0.04341874]
[1763086012478,0.20087105,99567.0,99565.0,0.00013738]
[1763086013519,0.2008707,99567.0,99565.0,0.00013738]
[1763086013736,0.20087039,99567.0,99565.0,0.00013738]
[1763086014372,0.07218103,99566.0,99565.0,0.00013738]
[1763086016617,0.20086993,99569.0,99565.0,0.00013738]
[1763086016618,0.02459,99585.0,99566.0,0.20087052]
[1763086016856,0.20086003,99572.0,99567.0,0.20086961]
[1763086017055,0.20086274,99571.0,99567.0,0.20086961]
[1763086017283,0.20085332,99576.0,99565.0,0.20100916]
[1763086017572,0.20084841,99578.0,99572.0,0.20085836]
[1763086017876,0.0903687,99579.0,99565.0,0.00013738]
[1763086018093,0.20085362,99575.0,99565.0,0.00013738]
[1763086018343,0.20086767,99569.0,99565.0,0.00013738]
[1763086018488,0.20085073,99577.0,99566.0,0.20087084]
[1763086018907,0.20087178,99566.0,99565.0,0.00013738]
[1763086019914,0.20086899,99568.0,99565.0,0.00013738]
[1763086020115,0.20086255,99571.0,99565.0,0.00013738]
[1763086020317,0.02334,99584.0,99565.0,0.00013738]
[1763086020558,0.0903687,99580.0,99565.0,0.00013738]
[1763086020725,0.21275758,99583.0,99565.0,0.00013738]
[1763086020926,0.01192,99583.0,99570.0,0.22086347]
[1763086021249,0.20087094,99567.0,99565.0,0.00013738]
[1763086021468,0.01233,99566.0,99565.0,0.00013738]
[1763086021783,0.21320127,99567.0,99565.0,0.00013738]
[1763086022194,0.06544,99581.0,99570.0,0.002]
[1763086022396,0.20085428,99575.0,99571.0,0.20086169]
[1763086022613,0.0903687,99580.0,99575.0,0.20085261]
[1763086022785,0.06544,99581.0,99578.0,0.20084692]
[1763086022988,0.20084354,99580.0,99576.0,0.20085104]
[1763086023194,0.06544,99581.0,99578.0,0.20084693]
[1763086023747,0.20084555,99579.0,99572.0,0.20085915]
[1763086023950,0.20084959,99577.0,99574.0,0.20085544]
[1763086024151,0.20085627,99574.0,99571.0,0.20086129]
[1763086024349,0.06544,99581.0,99578.0,0.002]
[1763086024595,0.06544,99581.0,99578.0,0.20284708]
[1763086024802,0.20084354,99580.0,99578.0,0.002]
[1763086025006,0.06544,99581.0,99579.0,0.20084522]
[1763086025208,0.07777,99581.0,99574.0,0.003]
[1763086025429,0.20085259,99576.0,99574.0,0.003]
[1763086026021,0.07777,99581.0,99576.0,0.20085161]
[1763086026176,0.07777,99581.0,99579.0,0.20084502]
[1763086026605,0.07777,99581.0,99574.0,0.006]
[1763086027065,0.20084777,99578.0,99574.0,0.20085536]
[1763086027274,0.06544,99581.0,99579.0,0.20084521]
[1763086027525,0.06544,99581.0,99580.0,0.02]
[1763086027687,0.071984,99581.0,99580.0,0.02]
[1763086027882,0.06544,99581.0,99570.0,0.06341874]
[1763086028167,0.06544,99581.0,99574.0,0.002]
[1763086028379,0.20085193,99576.0,99574.0,0.002]
[1763086028917,0.01169,99575.0,99574.0,0.005]
[1763086029272,0.20085193,99576.0,99574.0,0.005]
[1763086029475,0.20085193,99576.0,99574.0,0.003]
[1763086029697,0.20085804,99573.0,99570.0,0.24428222]
[1763086030061,0.20085804,99573.0,99570.0,0.24428204]
[1763086030173,0.20084798,99578.0,99566.0,0.04341874]
[1763086030383,0.20084798,99578.0,99574.0,0.20085468]
[1763086030581,0.20084988,99577.0,99574.0,0.003]
[1763086030821,0.2008517,99576.0,99574.0,0.003]
[1763086031497,0.06544,99581.0,99565.0,0.00013738]
[1763086031707,0.20087178,99566.0,99565.0,0.04355612]
[1763086031919,0.20087178,99566.0,99565.0,0.00013738]
[1763086032333,0.21723178,99566.0,99565.0,0.00013738]
[1763086033767,0.21723178,99566.0,99565.0,0.00313738]
[1763086034472,0.22892178,99566.0,99565.0,0.00513738]
[1763086034672,0.31207307,99566.0,99565.0,0.00513738]
[1763086035122,0.37751307,99566.0,99565.0,0.00513738]
[1763086035935,0.37751307,99566.0,99565.0,0.00013738]
[1763086036139,0.37751307,99566.0,99565.0,0.00213738]
[1763086036344,0.37751307,99566.0,99565.0,0.00413738]
[1763086036542,0.2009404,99532.0,99530.0,0.05367419]
[1763086036706,0.2009404,99532.0,99530.0,0.00045855]
[1763086036707,0.04018717,99532.0,99530.0,0.00045855]
[1763086036903,0.1184187,99531.0,99526.0,0.05367419]
[1763086037109,0.1184187,99531.0,99526.0,0.00013748]
[1763086037110,0.20095049,99527.0,99526.0,0.00013748]
[1763086037344,0.28275049,99527.0,99526.0,0.00013748]
[1763086039406,0.28275049,99527.0,99526.0,0.00113748]
[1763086039628,0.28275049,99527.0,99526.0,0.00313748]
[1763086039835,0.28275049,99527.0,99526.0,0.00213748]
[1763086040048,0.28275049,99527.0,99526.0,0.00113748]
[1763086040253,0.28275049,99527.0,99526.0,0.00313748]
[1763086040655,0.28275049,99527.0,99526.0,0.00213748]
[1763086040869,0.38123385,99527.0,99526.0,0.00313748]
[1763086042028,0.26639049,99527.0,99526.0,0.00313748]
[1763086042290,0.28275049,99527.0,99526.0,0.00313748]
[1763086042514,0.04448274,99527.0,99526.0,0.00313748]
[1763086042724,0.24543323,99527.0,99526.0,0.00313748]
[1763086042938,0.06544,99529.0,99526.0,0.00313748]
[1763086043125,0.26638736,99529.0,99526.0,0.00313748]
[1763086043604,0.01169,99539.0,99526.0,0.00313748]
[1763086043809,0.06544,99544.0,99527.0,0.20095049]
[1763086044012,0.06544,99544.0,99526.0,0.00213748]
[1763086044013,0.06544,99544.0,99535.0,0.20093434]
[1763086044185,0.06544,99544.0,99541.0,0.20092132]
[1763086044330,0.06544,99544.0,99542.0,0.20091929]
[1763086044542,0.06544,99544.0,99541.0,0.20092132]
[1763086045169,0.06544,99544.0,99539.0,0.20092542]
[1763086045391,0.06544,99544.0,99543.0,0.20091819]
[1763086045586,0.01169,99548.0,99543.0,0.20091819]
[1763086045875,0.20090221,99551.0,99546.0,0.20091132]
[1763086046705,0.20091617,99544.0,99543.0,0.002]
[1763086046926,0.21727617,99544.0,99543.0,0.005]
[1763086048026,0.20094926,99528.0,99522.0,0.20095953]
[1763086048254,0.01169,99527.0,99523.0,0.24437626]
[1763086048456,0.20092208,99542.0,99533.0,0.20093751]
[1763086048667,0.02283,99548.0,99530.0,0.02]
[1763086048879,0.20090677,99549.0,99541.0,0.20092094]
[1763086049092,0.20090677,99549.0,99531.0,0.20094241]
[1763086049093,0.03452,99554.0,99545.0,0.20091219]
[1763086049302,0.01169,99554.0,99544.0,0.20091529]
[1763086049507,0.20090295,99551.0,99544.0,0.20091529]
[1763086049707,0.20089801,99553.0,99544.0,0.20091529]
[1763086049954,0.01169,99554.0,99542.0,0.20091929]
[1763086050155,0.20091477,99545.0,99541.0,0.002]
[1763086050414,0.20091894,99543.0,99541.0,0.002]
[1763086051601,0.01169,99554.0,99546.0,0.20091073]
[1763086051804,0.01169,99554.0,99536.0,0.20093109]
[1763086051805,0.20090066,99552.0,99545.0,0.20091217]
[1763086051957,0.20090608,99551.0,99544.0,0.002]
[1763086052171,0.20091271,99546.0,99544.0,0.002]
[1763086052378,0.20090608,99549.0,99540.0,0.20092291]
[1763086052582,0.20090608,99549.0,99546.0,0.002]
[1763086052821,0.20090205,99551.0,99546.0,0.003]
[1763086053001,0.20090003,99552.0,99547.0,0.20091012]
[1763086053460,0.20091214,99546.0,99544.0,0.002]
[1763086053690,0.01609,99545.0,99544.0,0.002]
[1763086054350,0.20094008,99533.0,99526.0,0.00013748]
[1763086054588,0.31904919,99527.0,99526.0,0.00013748]
[1763086055486,0.31904919,99527.0,99526.0,0.00213748]
[1763086055716,0.31904919,99527.0,99526.0,0.00013748]
[1763086055940,0.31904919,99527.0,99526.0,0.00113748]
[1763086056162,0.31904919,99527.0,99526.0,0.00213748]
[1763086056373,0.31904919,99527.0,99526.0,0.00013748]
[1763086056590,0.31904919,99527.0,99526.0,0.00113748]
[1763086056802,0.22868049,99527.0,99526.0,0.00113748]
[1763086057898,0.32716385,99527.0,99526.0,0.00313748]
[1763086059101,0.32716385,99527.0,99526.0,0.00013748]
[1763086059282,0.32716385,99527.0,99526.0,0.00113748]
[1763086059500,0.32716385,99527.0,99526.0,0.00213748]
[1763086060883,0.32716385,99527.0,99526.0,0.00113748]
[1763086061086,0.20096463,99520.0,99510.0,0.0004]
[1763086061294,0.31553799,99520.0,99519.0,0.00315793]
[1763086062257,0.63853799,99520.0,99519.0,0.00013759]
[1763086062468,0.63853799,99520.0,99519.0,1e-08]
[1763086062746,0.2009828,99511.0,99510.0,0.0004]
[1763086062869,0.6171928,99511.0,99510.0,0.0004]
[1763086063080,0.72681257,99511.0,99510.0,0.0004]
[1763086064346,0.63595863,99511.0,99510.0,0.0014]
[1763086064853,0.63595863,99511.0,99510.0,0.0004]
[1763086064992,0.63595863,99511.0,99510.0,0.0014]
[1763086065194,0.63595863,99511.0,99470.0,0.01045328]
[1763086065401,0.43717249,99490.0,99470.0,0.00053762]
[1763086065599,0.20106188,99472.0,99470.0,0.00053762]
[1763086065803,0.20105006,99478.0,99474.0,0.20105704]
[1763086066262,0.01164,99481.0,99470.0,0.00053762]
[1763086066452,0.20105191,99477.0,99471.0,0.20106362]
[1763086066648,0.20105649,99475.0,99471.0,0.20106362]
[1763086066965,0.20105298,99477.0,99472.0,0.20106053]
[1763086067318,0.20105298,99477.0,99473.0,0.20105878]
[1763086067649,0.20105298,99477.0,99474.0,0.20105691]
[1763086067955,0.20105298,99477.0,99470.0,0.00053762]
[1763086067956,0.01609,99474.0,99470.0,0.00053762]
[1763086068168,0.20105012,99478.0,99472.0,0.20106142]
[1763086068373,0.20105012,99478.0,99473.0,0.003]
[1763086068570,0.21268364,99481.0,99473.0,0.003]
[1763086068571,0.20104832,99479.0,99477.0,0.00108145]
[1763086068780,0.01164,99481.0,99475.0,0.20105466]
[1763086068992,0.01164,99481.0,99475.0,0.20105554]
[1763086068993,0.21124685,99480.0,99475.0,0.20105554]
[1763086069184,0.21124685,99480.0,99478.0,0.00105569]
[1763086069388,0.01020087,99480.0,99477.0,0.201051]
[1763086069595,0.20102876,99489.0,99483.0,0.2010388]
[1763086069808,0.20103406,99486.0,99482.0,0.20104092]
[1763086070020,0.0903687,99488.0,99485.0,0.20103468]
[1763086070230,0.0903687,99488.0,99486.0,0.2010326]
[1763086070710,0.0903687,99488.0,99485.0,0.20103468]
[1763086070839,0.20103414,99486.0,99480.0,0.20104503]
[1763086071049,0.20103414,99486.0,99482.0,0.20104102]
[1763086071250,0.14521449,99488.0,99485.0,0.002]
[1763086071841,0.20103188,99487.0,99485.0,0.002]
[1763086072554,0.29139856,99488.0,99485.0,0.002]
[1763086072787,0.0903687,99488.0,99486.0,0.20103303]
[1763086073230,0.03852746,99487.0,99486.0,0.20103303]
[1763086073459,0.23955875,99487.0,99485.0,0.004]
[1763086073748,0.25564875,99487.0,99485.0,0.002]
[1763086073983,0.06548,99490.0,99474.0,0.20105625]
[1763086074183,0.0903687,99489.0,99487.0,0.20102992]
[1763086074667,0.29139672,99489.0,99485.0,0.20503431]
[1763086074898,0.20103149,99487.0,99482.0,0.20104097]
[1763086075023,0.20102944,99488.0,99481.0,0.20104341]
[1763086075219,0.20102944,99488.0,99487.0,0.002]
[1763086075745,0.20102944,99488.0,99487.0,0.00082388]
[1763086076195,0.21711944,99488.0,99487.0,0.00082388]
[1763086076450,0.30923707,99488.0,99487.0,0.00282388]
[1763086076606,0.30923707,99488.0,99487.0,0.00082388]
[1763086077013,0.21711944,99488.0,99487.0,0.00282388]
[1763086078073,0.21711944,99488.0,99487.0,0.00482388]
[1763086078532,0.26650639,99490.0,99487.0,0.00482388]
[1763086078533,0.06548,99490.0,99487.0,0.00482388]
[1763086078780,0.06548,99490.0,99487.0,0.004]
[1763086079191,0.06548,99490.0,99488.0,0.20102926]
[1763086079394,0.26650536,99490.0,99487.0,0.004]
[1763086079594,0.06548,99490.0,99487.0,0.20503045]
[1763086079913,0.06548,99490.0,99448.0,0.07156558]
[1763086080151,0.12126868,99490.0,99480.0,0.02]
[1763086080339,0.20105362,99476.0,99472.0,0.20106138]
[1763086080550,0.20105362,99476.0,99471.0,0.04341874]
[1763086080551,0.20102926,99488.0,99487.0,0.002]
[1763086080937,0.20104608,99480.0,99471.0,0.24448221]
[1763086081190,0.02302,99487.0,99470.0,0.00053762]
[1763086081479,0.0123,99479.0,99470.0,0.00053762]
[1763086081691,0.0213338,99478.0,99470.0,0.00053762]
[1763086081899,0.20104956,99478.0,99475.0,0.20105445]
[1763086082052,0.20105026,99478.0,99472.0,0.2010616]
[1763086082259,0.20105788,99474.0,99471.0,0.20106314]
[1763086082461,0.20105572,99475.0,99471.0,0.20106314]
[1763086082640,0.0123,99479.0,99472.0,0.2010616]
[1763086082850,0.0123,99484.0,99470.0,0.00053762]
[1763086083045,0.06548,99490.0,99470.0,0.02053762]
[1763086083252,0.001,99478.0,99474.0,0.20105604]
[1763086083452,0.003,99478.0,99476.0,0.20105234]
[1763086083657,0.002,99478.0,99476.0,0.20105234]
[1763086084029,0.001,99479.0,99477.0,0.20105149]
[1763086084324,0.20104789,99479.0,99476.0,0.20105315]
[1763086084541,0.20103621,99485.0,99478.0,0.00105569]
[1763086084746,0.20103369,99486.0,99481.0,0.20104187]
[1763086085291,0.06548,99490.0,99488.0,0.20102899]
[1763086085734,0.20101815,99494.0,99480.0,0.02]
[1763086085942,0.20101986,99493.0,99489.0,0.20102604]
[1763086086355,0.20101986,99493.0,99487.0,0.20102979]
[1763086086356,0.20102183,99492.0,99487.0,0.20102979]
[1763086086574,0.01004823,99520.0,99481.0,0.002]
[1763086086780,0.20098482,99510.0,99505.0,0.2009944]
[1763086086989,0.20098791,99509.0,99504.0,0.20099609]
[1763086087097,0.0903687,99510.0,99507.0,0.20099088]
[1763086087301,0.0903687,99510.0,99508.0,0.20098836]
[1763086087509,0.0903687,99510.0,99507.0,0.20099088]
[1763086087510,0.0123,99516.0,99510.0,0.20098482]
[1763086087930,0.0123,99516.0,99514.0,0.20097557]
[1763086088863,0.0123,99516.0,99507.0,0.001]
[1763086088864,0.20098778,99509.0,99507.0,0.001]
[1763086089048,0.02774,99508.0,99507.0,0.001]
[1763086089553,0.20102051,99493.0,99487.0,0.04341874]
[1763086089755,0.20102051,99493.0,99487.0,0.00013762]
[1763086089944,0.20101527,99495.0,99489.0,0.04341874]
[1763086090581,0.20101783,99494.0,99489.0,0.04341874]
[1763086090783,0.20101783,99494.0,99489.0,0.24444457]
[1763086091044,0.01146,99496.0,99493.0,0.00066936]
[1763086091219,0.01146,99496.0,99494.0,0.20101611]
[1763086091426,0.20099479,99506.0,99494.0,0.20101611]
[1763086091427,0.001,99495.0,99494.0,0.20101714]
[1763086091740,0.001,99495.0,99494.0,0.24443588]
[1763086092894,0.01146,99512.0,99510.0,0.20098428]
[1763086093094,0.0903687,99519.0,99515.0,0.20097403]
[1763086093296,0.34658,99529.0,99517.0,0.20097016]
[1763086093627,0.34658,99529.0,99494.0,0.002]
[1763086093628,0.20097775,99514.0,99491.0,0.24443992]
[1763086093839,0.001,99495.0,99494.0,0.20101714]
[1763086094008,0.200973,99516.0,99491.0,0.04341874]
[1763086094215,0.20098123,99512.0,99508.0,0.20098822]
[1763086094441,0.20098348,99511.0,99507.0,0.20099048]
[1763086094616,0.20097124,99517.0,99491.0,0.04341874]
[1763086094818,0.20097124,99517.0,99512.0,0.20097896]
[1763086095013,0.20097311,99516.0,99512.0,0.20097896]
[1763086095239,0.20097514,99515.0,99503.0,0.04341874]
[1763086095444,0.0903687,99519.0,99501.0,0.04341874]
[1763086095445,0.20099371,99506.0,99501.0,0.04341874]
[1763086095627,0.02774,99502.0,99495.0,0.04341874]
[1763086095988,0.20100632,99500.0,99495.0,0.04355636]
[1763086096171,0.01628,99496.0,99495.0,0.24457058]
[1763086096577,0.01628,99496.0,99495.0,0.24518844]
[1763086096782,0.01146,99502.0,99496.0,0.24443]
[1763086096962,0.21446178,99502.0,99498.0,0.20100839]
[1763086097173,0.01346,99502.0,99500.0,0.20100459]
[1763086097372,0.01146,99502.0,99500.0,0.20100459]
[1763086097795,0.01146,99512.0,99509.0,0.20098593]
[1763086097996,0.2124428,99512.0,99504.0,0.20099637]
[1763086098167,0.2009828,99511.0,99504.0,0.20099637]
[1763086098354,0.01146,99512.0,99491.0,0.04341874]
[1763086098561,0.01146,99512.0,99510.0,0.20098379]
[1763086099425,0.01628,99511.0,99503.0,0.2009983]
[1763086099722,0.01628,99511.0,99506.0,0.20099268]
[1763086099928,0.20098482,99510.0,99507.0,0.20099024]
[1763086100259,0.01628,99511.0,99510.0,0.022]
[1763086100432,0.01146,99512.0,99510.0,0.22298417]
[1763086100592,0.01628,99511.0,99510.0,0.22098417]
[1763086101392,0.01628,99511.0,99510.0,0.02]
[1763086102848,0.01146,99512.0,99511.0,0.2009828]
[1763086104179,0.01146,99512.0,99511.0,0.2029828]
[1763086104393,0.01146,99512.0,99511.0,0.2049828]
[1763086105479,0.0903687,99519.0,99511.0,0.004]
[1763086105656,0.200971,99517.0,99514.0,0.20097614]
[1763086105861,0.20096866,99518.0,99511.0,0.004]
[1763086106056,0.01146,99524.0,99514.0,0.2009748]
[1763086106257,0.20096677,99519.0,99513.0,0.20097876]
[1763086106705,0.20096677,99519.0,99516.0,0.20097219]
[1763086107061,0.20096664,99519.0,99512.0,0.20098032]
[1763086107286,0.01146,99524.0,99514.0,0.001]
[1763086107501,0.20097231,99517.0,99513.0,0.20197763]
[1763086107915,0.20097231,99517.0,99516.0,0.002]
[1763086108115,0.21243674,99514.0,99513.0,0.001]
[1763086108436,0.20098251,99512.0,99510.0,0.02023166]
[1763086108641,0.01146,99526.0,99520.0,0.02]
[1763086108798,0.2009828,99511.0,99510.0,0.00023166]
[1763086109012,0.2287228,99511.0,99510.0,0.00023166]
[1763086109629,0.2287228,99511.0,99510.0,0.00223166]
[1763086110285,0.2287228,99511.0,99510.0,0.00023166]
[1763086110502,0.2287228,99511.0,99510.0,0.00423166]
[1763086110719,0.29179088,99511.0,99510.0,0.00423166]
[1763086111373,0.2287228,99511.0,99510.0,0.00423166]
[1763086111824,0.2287228,99511.0,99510.0,0.00223166]
[1763086112245,0.2287228,99511.0,99510.0,0.00323166]
[1763086112246,0.5517228,99511.0,99510.0,0.00323166]
[1763086112478,0.5517228,99511.0,99510.0,0.00123166]
[1763086112685,0.64709088,99511.0,99510.0,0.00223166]
[1763086112912,0.01173,99523.0,99510.0,0.00223166]
[1763086113137,0.02481,99535.0,99526.0,0.20095227]
[1763086113409,0.02004519,99550.0,99530.0,0.02]
[1763086113410,0.44721769,99550.0,99530.0,0.02]
[1763086113630,0.01173,99554.0,99536.0,0.20093099]
[1763086113631,0.20091358,99546.0,99536.0,0.20093099]
[1763086113849,0.02481,99553.0,99539.0,0.20092622]
[1763086114085,0.01173,99554.0,99550.0,0.20090235]
[1763086114304,0.01186747,99552.0,99550.0,0.02]
[1763086114513,0.20090205,99551.0,99550.0,0.02]
[1763086114938,0.01186747,99552.0,99540.0,0.02]
[1763086115150,0.01186747,99552.0,99550.0,0.20090359]
[1763086115579,0.01186747,99552.0,99522.0,0.30143838]
[1763086115788,0.20090205,99551.0,99550.0,0.002]
[1763086116218,0.01659,99551.0,99541.0,0.24434097]
[1763086116431,0.01659,99551.0,99550.0,0.002]
[1763086116672,0.01659,99551.0,99550.0,0.024]
[1763086116930,0.01659,99551.0,99550.0,0.002]
[1763086117174,0.08087754,99551.0,99550.0,0.004]
[1763086117855,0.08087754,99551.0,99550.0,0.002]
[1763086118019,0.08287754,99551.0,99550.0,0.002]
[1763086118222,0.01859,99551.0,99550.0,0.002]
[1763086118646,0.33959,99551.0,99550.0,0.002]
[1763086118900,0.20097001,99518.0,99510.0,0.0102809]
[1763086119113,0.20097194,99517.0,99510.0,0.02023166]
[1763086119330,0.01173,99519.0,99511.0,0.04341874]
[1763086119546,0.01173,99519.0,99510.0,0.02023166]
[1763086119763,0.01173,99519.0,99512.0,0.20097885]
[1763086119970,0.01173,99519.0,99510.0,0.02023166]
[1763086119971,0.20097206,99517.0,99511.0,0.04341874]
[1763086120180,0.20096866,99518.0,99511.0,0.04341874]
[1763086120392,0.2009719,99517.0,99511.0,0.04341874]
[1763086121064,0.01173,99519.0,99511.0,0.04341874]
[1763086121263,0.01173,99519.0,99514.0,0.04341874]
[1763086121399,0.20096866,99518.0,99514.0,0.04341874]
[1763086121580,0.20097214,99517.0,99513.0,0.04341874]
[1763086121791,0.20297214,99517.0,99513.0,0.04341874]
[1763086122146,0.20097214,99517.0,99513.0,0.04341874]
[1763086122288,0.01173,99519.0,99516.0,0.20097245]
[1763086122499,0.002,99518.0,99511.0,0.04341874]
[1763086122716,0.002,99518.0,99510.0,0.02023166]
[1763086122717,0.20296992,99518.0,99510.0,0.02023166]
[1763086122966,0.20097159,99517.0,99514.0,0.04341874]
[1763086123179,0.20097421,99516.0,99514.0,0.04341874]
[1763086123397,0.002,99518.0,99511.0,0.04341874]
[1763086123927,0.21269847,99519.0,99511.0,0.04341874]
[1763086124132,0.002,99517.0,99511.0,0.04341874]
[1763086124339,0.002,99517.0,99516.0,0.2009727]
[1763086124786,0.01173,99519.0,99516.0,0.2009727]
[1763086124990,0.002,99518.0,99516.0,0.2009727]
[1763086125325,0.21269737,99519.0,99514.0,0.24439419]
[1763086125532,0.01659,99515.0,99511.0,0.04341874]
[1763086125728,0.20097674,99514.0,99511.0,0.04341874]
[1763086125931,0.01659,99512.0,99511.0,0.04341874]
[1763086126556,0.20097959,99513.0,99511.0,0.04341874]
[1763086126997,0.20097674,99514.0,99511.0,0.04341874]
[1763086127197,0.21269696,99519.0,99511.0,0.04341874]
[1763086127198,0.20097428,99516.0,99511.0,0.04341874]
[1763086127450,0.01373,99519.0,99518.0,0.20096866]
[1763086127614,0.01373,99519.0,99510.0,0.02023166]
[1763086127615,0.03032,99519.0,99510.0,0.02023166]
[1763086127838,0.20097068,99517.0,99511.0,0.04341874]
[1763086128042,0.01659,99511.0,99510.0,0.02023166]
[1763086128252,0.2175728,99511.0,99510.0,0.00023166]
[1763086129076,0.2175728,99511.0,99510.0,0.02023166]
[1763086129327,0.2175728,99511.0,99510.0,0.00023166]
[1763086129494,0.01659,99511.0,99510.0,0.00023166]
[1763086129707,0.1069587,99511.0,99510.0,0.00023166]
[1763086129905,0.1151787,99511.0,99510.0,0.00023166]
[1763086130078,0.1317687,99511.0,99510.0,0.00123166]
[1763086130487,0.23025206,99511.0,99510.0,0.00123166]
[1763086130941,0.23025206,99511.0,99510.0,0.00323166]
[1763086131261,0.23525206,99511.0,99510.0,0.00323166]